[Event "Weekendtournooi Groningen & PK NOSBO"]
[Site "Groningen, Netherlands"]
[Date "2023.05.19"]
[Round "2.5"]
[White "Kardoeus, David"]
[Black "Kazarjan, Gachatur"]
[Result "1-0"]
[TimeControl "90min + 30sec/move"]
[WhiteElo "2158"]
[BlackElo "1906"]

1. e4 {[%clk 01:19:38]} c5 {[%clk 01:30:36]} 2. Nf3 {[%clk 01:19:26]} d6 {[%clk
01:31:00]} 3. d4 {[%clk 01:19:21]} cxd4 {[%clk 01:31:26]} 4. Nxd4 {[%clk
01:19:43]} Nf6 {[%clk 01:31:52]} 5. Nc3 {[%clk 01:20:02]} Bd7 {[%clk 01:32:17]}
6. Bg5 {[%clk 01:18:04]} e6 {[%clk 01:32:23]} 7. Qd2 {[%clk 01:17:46]} Be7
{[%clk 01:32:45]} 8. Ndb5 {[%clk 01:13:12]} Bxb5 {[%clk 01:29:59]} 9. Bxb5+
{[%clk 01:13:24]} Nc6 {[%clk 01:28:09]} 10. O-O-O {[%clk 01:12:40]} Qb6 {[%clk
01:27:52]} 11. Kb1 {[%clk 01:07:36]} O-O {[%clk 01:24:55]} 12. Be2 {[%clk
00:46:24]} Rfd8 {[%clk 01:19:18]} 13. Be3 {[%clk 00:35:16]} Qa5 {[%clk
01:17:50]} 14. g4 {[%clk 00:30:28]} d5 {[%clk 01:16:03]} 15. exd5 {[%clk
00:30:11]} Bb4 {[%clk 01:14:56]} 16. Qc1 {[%clk 00:26:59]} exd5 {[%clk
01:13:14]} 17. Nb5 {[%clk 00:26:04]} Nxg4 {[%clk 00:46:16]} 18. Bxg4 {[%clk
00:25:12]} Qxb5 {[%clk 00:46:16]} 19. c3 {[%clk 00:19:27]} Bf8 {[%clk
00:40:42]} 20. Rhg1 {[%clk 00:18:19]} Rd6 {[%clk 00:38:01]} 21. Bf5 {[%clk
00:16:05]} Ne7 {[%clk 00:30:24]} 22. Bd3 {[%clk 00:15:48]} Qc6 {[%clk
00:30:39]} 23. Bd4 {[%clk 00:12:43]} Rh6 {[%clk 00:24:33]} 24. Qg5 {[%clk
00:11:52]} Ng6 {[%clk 00:24:34]} 25. f4 {[%clk 00:10:13]} f6 {[%clk 00:23:23]}
26. Qg4 {[%clk 00:08:25]} Re8 {[%clk 00:21:35]} 27. Bf5 {[%clk 00:08:28]} Qd6
{[%clk 00:20:29]} 28. Bc2 {[%clk 00:01:49]} Rh4 {[%clk 00:15:29]} {[%emt
00:03:45]} 29. Qg3 {[%clk 00:01:16]} {[%emt 00:01:07]} Qxf4 {[%clk 00:13:57]}
{[%emt 00:02:01]} 30. Qg2 {[%clk 00:00:41]} {[%emt 00:01:06]} Qd6 {[%clk
00:04:50]} {[%emt 00:09:37]} 31. h3 {[%clk 00:00:40]} {[%emt 00:00:27]} Nf4
{[%clk 00:03:41]} {[%emt 00:01:39]} 32. Qg3 {[%clk 00:01:09]} Rxh3 {[%clk
00:03:02]} {[%emt 00:01:11]} 33. Qg4 {[%clk 00:01:38]} Re2 {[%clk 00:02:24]}
{[%emt 00:01:08]} 34. Rh1 {[%clk 00:02:07]} Rg2 {[%clk 00:02:34]} {[%emt
00:00:21]} 35. Qf5 {[%clk 00:01:21]} {[%emt 00:01:17]} Rg5 {[%clk 00:02:51]}
{[%emt 00:00:12]} 36. Qc8 {[%clk 00:01:18]} {[%emt 00:00:35]} Rxh1 {[%clk
00:02:10]} {[%emt 00:01:10]} 37. Rxh1 {[%clk 00:01:41]} {[%emt 00:00:06]} Qc6
{[%clk 00:01:25]} {[%emt 00:01:18]} 38. Bxh7+ {[%clk 00:01:09]} {[%emt
00:01:04]} Kf7 {[%clk 00:01:51]} {[%emt 00:00:04]} 39. Qb8 {[%clk 00:01:20]}
{[%emt 00:00:15]} Nh5 {[%clk 00:01:19]} {[%emt 00:01:05]} 40. Bd3 {[%clk
00:01:19]} {[%emt 00:00:28]} a6 {[%clk 00:01:38]} {[%emt 00:00:11]} 41. Qd8
{[%clk 00:01:13]} {[%emt 00:00:35]} Be7 {[%clk 00:01:14]} {[%emt 00:00:55]} 42.
Qh8 {[%clk 00:01:35]} {[%emt 00:00:07]} Nf4 {[%clk 00:01:35]} {[%emt 00:00:10]}
43. Bh7 {[%clk 00:01:51]} {[%emt 00:00:15]} Qe8 {[%clk 00:01:40]} {[%emt
00:00:24]} 44. Qxe8+ {[%clk 00:01:00]} {[%emt 00:01:20]} Kxe8 {[%clk 00:02:05]}
{[%emt 00:00:06]} 45. Bg8 {[%clk 00:01:17]} {[%emt 00:00:13]} Ne2 {[%clk
00:01:38]} {[%emt 00:00:57]} 46. Be3 {[%clk 00:00:51]} {[%emt 00:00:55]} Rg3
{[%clk 00:01:42]} {[%emt 00:00:26]} 47. Bf2 {[%clk 00:01:09]} {[%emt 00:00:13]}
Rf3 {[%clk 00:02:06]} {[%emt 00:00:05]} 48. Bb6 {[%clk 00:00:53]} {[%emt
00:00:49]} Rf5 {[%clk 00:01:27]} {[%emt 00:01:07]} 49. Be6 {[%clk 00:00:59]}
{[%emt 00:00:24]} Re5 {[%clk 00:01:44]} {[%emt 00:00:25]} 50. Rh8+ {[%clk
00:01:13]} {[%emt 00:00:06]} Bf8 {[%clk 00:02:10]} {[%emt 00:00:05]} 51. Bc8
{[%clk 00:01:21]} {[%emt 00:00:19]} Kf7 {[%clk 00:02:12]} {[%emt 00:00:27]} 52.
Bxb7 {[%clk 00:01:35]} {[%emt 00:00:15]} g5 {[%clk 00:02:33]} {[%emt 00:00:15]}
53. Bc7 {[%clk 00:01:28]} {[%emt 00:00:34]} Re7 {[%clk 00:02:00]} {[%emt
00:01:05]} 54. Bxd5+ {[%clk 00:01:51]} {[%emt 00:00:05]} Kg7 {[%clk 00:02:21]}
{[%emt 00:00:08]} 55. Rg8+ {[%clk 00:00:56]} {[%emt 00:01:25]} Kh7 {[%clk
00:02:50]} 56. Rxf8 {[%clk 00:00:40]} {[%emt 00:00:52]} Rxc7 {[%clk 00:03:16]}
57. Rxf6 {[%clk 00:01:00]} {[%emt 00:00:10]} a5 {[%clk 00:03:38]} {[%emt
00:00:09]} 58. Be4+ {[%clk 00:00:56]} {[%emt 00:00:34]} Kh8 {[%clk 00:03:47]}
{[%emt 00:00:20]} 59. Rf8+ {[%clk 00:00:47]} {[%emt 00:00:39]} Kg7 {[%clk
00:04:10]} {[%emt 00:00:07]} 60. Rf5 {[%clk 00:01:09]} {[%emt 00:00:08]} Re7
{[%clk 00:04:21]} {[%emt 00:00:23]} 61. Rxg5+ {[%clk 00:00:45]} {[%emt
00:00:50]} Kh6 {[%clk 00:04:38]} {[%emt 00:00:12]} 62. Rg4 {[%clk 00:00:53]}
{[%emt 00:00:23]} Re5 {[%clk 00:05:05]} {[%emt 00:00:04]} 63. Bf3 {[%clk
00:01:03]} {[%emt 00:00:19]} 1-0

[Event "Weekendtournooi Groningen & PK NOSBO"]
[Site "Groningen, Netherlands"]
[Date "2023.05.19"]
[Round "2.7"]
[White "Jacobs, Florian"]
[Black "Van De Poel, Taco"]
[Result "1-0"]
[TimeControl "90min + 30sec/move"]
[WhiteElo "2227"]
[BlackElo "1854"]

1. d4 {[%clk 01:30:56]} Nf6 {[%clk 01:30:45]} 2. c4 {[%clk 01:31:15]} {[%emt
00:01:04]} g6 {[%clk 01:31:09]} 3. Nc3 {[%clk 01:31:41]} d5 {[%clk 01:31:33]} 4.
cxd5 {[%clk 01:31:45]} Nxd5 {[%clk 01:31:53]} 5. e4 {[%clk 01:32:11]} Nxc3
{[%clk 01:32:15]} 6. bxc3 {[%clk 01:32:37]} {[%emt 00:00:49]} Bg7 {[%clk
01:32:36]} 7. Nf3 {[%clk 01:32:55]} c5 {[%clk 01:32:58]} 8. Bb5+ {[%clk
01:33:20]} Bd7 {[%clk 01:32:58]} 9. Rb1 {[%clk 01:32:48]} O-O {[%clk 01:24:18]}
10. O-O {[%clk 01:32:50]} Bg4 {[%clk 01:23:37]} 11. Be3 {[%clk 01:26:20]} Qa5
{[%clk 01:18:09]} 12. d5 {[%clk 01:19:29]} Bxc3 {[%clk 01:12:42]} 13. Be2
{[%clk 01:11:17]} Nd7 {[%clk 01:02:59]} 14. Rxb7 {[%clk 01:03:43]} Rab8 {[%clk
01:01:05]} 15. Rb3 {[%clk 00:59:43]} Rxb3 {[%clk 00:55:22]} 16. axb3 {[%clk
01:00:06]} Qa2 {[%clk 00:52:14]} 17. h3 {[%clk 00:52:04]} Bxf3 {[%clk
00:52:07]} 18. Bxf3 {[%clk 00:51:23]} Rb8 {[%clk 00:50:49]} 19. Bg4 {[%clk
00:50:33]} Nf6 {[%clk 00:31:26]} 20. Bxc5 {[%clk 00:50:26]} Nxe4 {[%clk
00:30:59]} 21. Bxe7 {[%clk 00:50:13]} f5 {[%clk 00:30:20]} 22. d6 {[%clk
00:48:18]} Qxb3 {[%clk 00:27:04]} 23. Qxb3+ {[%clk 00:31:28]} Rxb3 {[%clk
00:27:12]} 24. d7 {[%clk 00:31:39]} Ba5 {[%clk 00:25:41]} 25. Be2 {[%clk
00:12:40]} Rb8 {[%clk 00:24:55]} 26. Ra1 {[%clk 00:09:55]} Bb6 {[%clk
00:23:14]} 27. Bc4+ {[%clk 00:07:35]} Kg7 {[%clk 00:18:19]} 28. Ra2 {[%clk
00:07:29]} Bd8 {[%clk 00:06:58]} {[%emt 00:05:48]} 29. Bxd8 {[%clk 00:07:53]}
Rxd8 {[%clk 00:07:27]} {[%emt 00:00:38]} 30. Rxa7 {[%emt 00:00:10]} Kf6 {[%emt
00:04:57]} 31. Bb5 {[%clk 00:04:41]} Ke7 {[%clk 00:06:22]} {[%emt 00:01:01]} 32.
h4 {[%clk 00:03:53]} {[%emt 00:01:42]} Nf6 {[%clk 00:06:08]} 33. Kh2 {[%clk
00:03:47]} {[%emt 00:00:34]} Nxd7 {[%clk 00:05:15]} {[%emt 00:01:23]} 34. Kg3
{[%clk 00:04:09]} {[%emt 00:00:35]} h6 {[%clk 00:05:12]} {[%emt 00:00:09]} 35.
Kf4 {[%clk 00:04:30]} {[%emt 00:00:09]} Ke6 {[%clk 00:04:13]} {[%emt 00:01:25]}
36. Bxd7+ {[%clk 00:04:39]} {[%emt 00:00:25]} Rxd7 {[%clk 00:04:40]} {[%emt
00:00:05]} 37. Rxd7 {[%clk 00:05:03]} {[%emt 00:00:05]} Kxd7 {[%clk 00:04:57]}
{[%emt 00:00:08]} 38. h5 {[%clk 00:05:30]} {[%emt 00:00:14]} Ke7 {[%clk
00:04:25]} {[%emt 00:00:52]} 39. hxg6 {[%clk 00:05:54]} {[%emt 00:00:32]} Kf6
{[%clk 00:04:49]} {[%emt 00:00:10]} 40. g7 {[%clk 00:06:22]} Kxg7 {[%clk
00:05:11]} 41. Kxf5 {[%clk 00:06:49]} Kf7 {[%clk 00:05:20]} {[%emt 00:00:10]}
42. f4 {[%clk 00:06:11]} {[%emt 00:01:01]} Kg7 {[%clk 00:05:39]} {[%emt
00:00:12]} 43. Ke6 {[%clk 00:06:20]} {[%emt 00:00:35]} h5 {[%clk 00:05:52]}
{[%emt 00:00:05]} 44. f5 {[%clk 00:06:17]} {[%emt 00:00:31]} Kf8 {[%clk
00:05:46]} {[%emt 00:00:36]} 45. Kf6 {[%clk 00:06:34]} {[%emt 00:00:14]} 1-0

[Event "Weekendtournooi Groningen & PK NOSBO"]
[Site "Groningen, Netherlands"]
[Date "2023.05.19"]
[Round "2.8"]
[White "Klooster, Jim"]
[Black "Labruyere, Roger"]
[Result "0-1"]
[TimeControl "90min + 30sec/move"]
[WhiteElo "1887"]
[BlackElo "2169"]

1. e4 {[%clk 01:30:58]} {[%emt 00:00:09]} c5 {[%clk 01:13:43]} {[%emt
00:16:52]} 2. Nf3 {[%clk 01:31:22]} d6 {[%clk 01:13:33]} {[%emt 00:00:43]} 3.
d4 {[%clk 01:31:48]} {[%emt 00:00:03]} cxd4 {[%clk 01:14:00]} {[%emt 00:00:04]}
4. Nxd4 {[%clk 01:32:15]} {[%emt 00:00:05]} Nf6 {[%clk 01:14:21]} {[%emt
00:00:05]} 5. Nc3 {[%clk 01:32:40]} {[%emt 00:00:14]} e6 {[%clk 01:14:48]} 6.
Be2 {[%clk 01:26:07]} {[%emt 00:06:56]} a6 {[%clk 01:12:31]} {[%emt 00:02:43]}
7. a4 {[%clk 01:23:58]} {[%emt 00:02:45]} Be7 {[%clk 01:12:17]} {[%emt
00:01:01]} 8. O-O {[%clk 01:24:09]} {[%emt 00:00:03]} O-O {[%clk 01:12:30]}
{[%emt 00:00:33]} 9. Qd3 {[%clk 01:19:26]} {[%emt 00:05:02]} Nc6 {[%clk
01:11:11]} {[%emt 00:01:46]} 10. Nxc6 {[%clk 01:16:53]} {[%emt 00:02:59]} bxc6
{[%clk 01:11:38]} {[%emt 00:00:07]} 11. Qg3 {[%clk 01:17:17]} {[%emt 00:00:09]}
Kh8 {[%clk 01:10:50]} {[%emt 00:01:18]} 12. f4 {[%clk 01:06:44]} {[%emt
00:10:58]} Qb6+ {[%clk 01:09:25]} {[%emt 00:01:56]} 13. Kh1 {[%clk 01:06:42]}
{[%emt 00:00:29]} d5 {[%clk 01:08:03]} {[%emt 00:01:54]} 14. e5 {[%clk
00:58:54]} {[%emt 00:08:20]} Nd7 {[%clk 01:02:44]} {[%emt 00:05:45]} 15. a5
{[%clk 00:58:56]} {[%emt 00:00:28]} Qc7 {[%clk 01:03:08]} {[%emt 00:00:34]} 16.
Bd2 {[%clk 00:55:27]} {[%emt 00:03:32]} Rb8 {[%clk 01:03:04]} {[%emt 00:00:31]}
17. Na4 {[%clk 00:54:21]} {[%emt 00:01:40]} Bb4 {[%clk 01:02:23]} {[%emt
00:01:08]} 18. Bxb4 {[%clk 00:53:29]} {[%emt 00:01:46]} Rxb4 {[%clk 01:02:38]}
{[%emt 00:00:24]} 19. c3 {[%clk 00:51:56]} {[%emt 00:01:31]} Rb8 {[%clk
00:49:44]} {[%emt 00:13:23]} 20. b4 {[%clk 00:50:10]} {[%emt 00:02:17]} c5
{[%clk 00:50:04]} {[%emt 00:00:13]} 21. Nxc5 {[%clk 00:37:59]} {[%emt
00:13:10]} Nxc5 {[%clk 00:48:26]} {[%emt 00:01:34]} 22. bxc5 {[%clk 00:38:25]}
{[%emt 00:00:38]} Qxc5 {[%clk 00:48:48]} 23. c4 {[%clk 00:35:10]} {[%emt
00:03:21]} dxc4 {[%clk 00:48:31]} {[%emt 00:00:46]} 24. Rfc1 {[%clk 00:35:15]}
{[%emt 00:00:26]} Rb4 {[%clk 00:48:38]} {[%emt 00:00:22]} 25. Qa3 {[%clk
00:33:42]} {[%emt 00:02:03]} Bb7 {[%clk 00:38:30]} {[%emt 00:10:42]} 26. Bxc4
{[%clk 00:32:19]} {[%emt 00:01:48]} Rb8 {[%clk 00:36:45]} {[%emt 00:02:16]} 27.
Be2 {[%clk 00:28:56]} {[%emt 00:03:57]} Qf2 {[%clk 00:35:01]} {[%emt 00:02:10]}
28. Rg1 {[%clk 00:27:00]} {[%emt 00:03:04]} Qxe2 {[%clk 00:31:16]} {[%emt
00:03:37]} 29. Qxb4 {[%clk 00:26:33]} {[%emt 00:00:57]} Bxg2+ {[%clk 00:31:37]}
{[%emt 00:00:15]} 30. Rxg2 {[%clk 00:26:58]} {[%emt 00:00:04]} Qxg2+ {[%clk
00:32:03]} {[%emt 00:00:03]} 31. Kxg2 {[%clk 00:27:22]} {[%emt 00:00:05]} Rxb4
{[%clk 00:32:31]} {[%emt 00:00:03]} 32. Rc1 {[%clk 00:26:52]} {[%emt 00:01:31]}
h5 {[%clk 00:32:54]} 33. Kf3 {[%clk 00:23:52]} {[%emt 00:03:03]} Ra4 {[%clk
00:33:18]} {[%emt 00:00:08]} 34. Rc5 {[%clk 00:24:14]} {[%emt 00:00:09]} Kh7
{[%clk 00:33:44]} {[%emt 00:00:03]} 35. h4 {[%clk 00:24:26]} {[%emt 00:00:25]}
Kg6 {[%clk 00:34:09]} 0-1

[Event "Weekendtournooi Groningen & PK NOSBO"]
[Site "Groningen, Netherlands"]
[Date "2023.05.19"]
[Round "2.9"]
[White "Aden, Tammo"]
[Black "Van Dijk, Ron"]
[Result "1-0"]
[TimeControl "90min + 30sec/move"]
[WhiteElo "1998"]
[BlackElo "1746"]

1. d4 {[%clk 01:30:58]} b6 {[%clk 01:27:39]} {[%emt 00:03:19]} 2. c4 {[%clk
01:31:07]} {[%emt 00:00:15]} Bb7 {[%clk 01:27:55]} {[%emt 00:00:15]} 3. Nf3
{[%clk 01:30:47]} {[%emt 00:00:50]} e6 {[%clk 01:27:24]} {[%emt 00:01:05]} 4.
g3 {[%clk 01:31:05]} {[%emt 00:00:14]} Nf6 {[%clk 01:24:40]} {[%emt 00:03:07]}
5. Bg2 {[%clk 01:31:24]} {[%emt 00:00:12]} Be7 {[%clk 01:24:16]} {[%emt
00:00:54]} 6. O-O {[%clk 01:31:20]} {[%emt 00:00:37]} O-O {[%clk 01:23:46]}
{[%emt 00:00:56]} 7. Nc3 {[%clk 01:29:43]} {[%emt 00:02:11]} d5 {[%clk
01:22:33]} {[%emt 00:01:38]} 8. cxd5 {[%clk 01:26:57]} {[%emt 00:03:17]} exd5
{[%clk 01:20:06]} {[%emt 00:03:10]} 9. Qc2 {[%clk 01:20:04]} {[%emt 00:07:14]}
Nbd7 {[%clk 01:15:42]} {[%emt 00:04:50]} 10. Rd1 {[%clk 01:17:39]} {[%emt
00:06:47]} Ne4 {[%clk 01:07:23]} {[%emt 00:04:56]} 11. Nxe4 {[%clk 00:59:03]}
{[%emt 00:19:09]} dxe4 {[%clk 01:07:45]} {[%emt 00:00:06]} 12. Ne5 {[%clk
00:59:28]} {[%emt 00:00:06]} Nf6 {[%clk 00:55:31]} {[%emt 00:12:44]} 13. Nc6
{[%clk 00:53:23]} {[%emt 00:06:34]} Qd7 {[%clk 00:46:01]} {[%emt 00:10:02]} 14.
Nxe7+ {[%clk 00:53:45]} {[%emt 00:00:07]} Qxe7 {[%clk 00:46:23]} {[%emt
00:00:09]} 15. Bg5 {[%clk 00:53:58]} {[%emt 00:00:14]} Rac8 {[%clk 00:43:43]}
{[%emt 00:03:11]} 16. Rac1 {[%clk 00:45:55]} {[%emt 00:08:38]} Rfe8 {[%clk
00:39:10]} {[%emt 00:04:57]} 17. Bh3 {[%clk 00:37:44]} {[%emt 00:08:40]} h6
{[%clk 00:31:03]} {[%emt 00:08:39]} 18. Bxf6 {[%clk 00:36:57]} {[%emt
00:01:20]} Qxf6 {[%clk 00:31:05]} {[%emt 00:00:32]} 19. Bxc8 {[%clk 00:36:27]}
{[%emt 00:01:01]} Rxc8 {[%clk 00:30:28]} {[%emt 00:00:58]} 20. Qd2 {[%clk
00:33:41]} {[%emt 00:03:16]} Qe6 {[%clk 00:28:51]} {[%emt 00:02:07]} 21. Qf4
{[%clk 00:30:25]} {[%emt 00:03:46]} c6 {[%clk 00:24:01]} {[%emt 00:05:20]} 22.
Rc3 {[%clk 00:19:05]} {[%emt 00:11:50]} Qxa2 {[%clk 00:19:01]} {[%emt
00:05:30]} 23. Ra3 {[%clk 00:18:17]} {[%emt 00:01:18]} Qxb2 {[%clk 00:17:50]}
{[%emt 00:01:41]} 24. Rxa7 {[%clk 00:18:38]} {[%emt 00:00:17]} Qb3 {[%clk
00:15:31]} {[%emt 00:02:41]} 25. Rf1 {[%clk 00:13:19]} {[%emt 00:05:49]} 1-0

[Event "Weekendtournooi Groningen & PK NOSBO"]
[Site "Groningen, Netherlands"]
[Date "2023.05.19"]
[Round "2.10"]
[White "Ambrona Navarro, Himar"]
[Black "Westerlaan, Sander"]
[Result "0-1"]
[TimeControl "90min + 30sec/move"]
[WhiteElo "1833"]
[BlackElo "1960"]

1. d4 {[%clk 01:30:54]} d5 {[%clk 01:30:56]} {[%emt 00:00:14]} 2. c3 {[%clk
01:31:11]} {[%emt 00:00:33]} Nf6 {[%clk 01:30:54]} 3. Bf4 {[%clk 01:31:27]}
{[%emt 00:00:33]} e6 {[%clk 01:30:42]} {[%emt 00:00:21]} 4. e3 {[%clk
01:31:06]} {[%emt 00:00:49]} Bd6 {[%clk 01:30:55]} {[%emt 00:00:18]} 5. Bg3
{[%clk 01:31:21]} {[%emt 00:00:15]} c5 {[%clk 01:30:45]} {[%emt 00:00:40]} 6.
Bd3 {[%clk 01:30:44]} {[%emt 00:01:05]} O-O {[%clk 01:29:36]} {[%emt 00:02:13]}
7. Nf3 {[%clk 01:29:53]} {[%emt 00:00:47]} Qc7 {[%clk 01:28:18]} {[%emt
00:01:59]} 8. Nbd2 {[%clk 01:28:22]} {[%emt 00:01:52]} Nbd7 {[%clk 01:28:32]}
{[%emt 00:00:34]} 9. Bxd6 {[%clk 01:26:35]} {[%emt 00:02:08]} Qxd6 {[%clk
01:28:00]} {[%emt 00:00:53]} 10. O-O {[%clk 01:26:45]} {[%emt 00:00:24]} e5
{[%clk 01:28:10]} {[%emt 00:00:16]} 11. dxc5 {[%clk 01:22:05]} {[%emt
00:05:09]} Nxc5 {[%clk 01:27:57]} {[%emt 00:00:44]} 12. Bc2 {[%clk 01:14:00]}
{[%emt 00:08:32]} e4 {[%clk 01:18:57]} {[%emt 00:09:34]} 13. Nd4 {[%clk
01:11:39]} {[%emt 00:02:51]} Ng4 {[%clk 01:18:20]} {[%emt 00:01:41]} 14. g3
{[%clk 01:10:54]} {[%emt 00:00:45]} Qh6 {[%clk 01:08:11]} {[%emt 00:11:08]} 15.
h4 {[%clk 01:01:20]} {[%emt 00:09:27]} g5 {[%clk 01:08:30]} {[%emt 00:00:32]}
16. Kg2 {[%clk 00:59:38]} {[%emt 00:01:56]} gxh4 {[%clk 01:07:13]} {[%emt
00:01:46]} 17. Rh1 {[%clk 00:58:53]} {[%emt 00:01:11]} h3+ {[%clk 01:04:08]}
{[%emt 00:03:37]} 18. Kg1 {[%clk 00:58:57]} {[%emt 00:00:32]} a5 {[%clk
00:33:00]} {[%emt 00:31:55]} 19. Qf1 {[%clk 00:54:11]} {[%emt 00:04:52]} h2+
{[%clk 00:32:13]} {[%emt 00:01:21]} 20. Kg2 {[%clk 00:51:29]} {[%emt 00:03:11]}
Nxe3+ {[%clk 00:32:39]} {[%emt 00:00:10]} 0-1

[Event "Weekendtournooi Groningen & PK NOSBO"]
[Site "Groningen, Netherlands"]
[Date "2023.05.19"]
[Round "2.11"]
[White "Huiskes, Mathijs"]
[Black "Bruggink, Tycho"]
[Result "0-1"]
[TimeControl "90min + 30sec/move"]
[WhiteElo "1746"]
[BlackElo "1873"]

1. Nf3 {[%clk 01:30:57]} {[%emt 00:03:00]} Nf6 {[%clk 01:29:15]} 2. e3 {[%clk
01:31:21]} {[%emt 00:00:03]} d5 {[%clk 01:29:22]} 3. c4 {[%clk 01:31:44]} c6
{[%clk 01:27:39]} 4. Nc3 {[%clk 01:31:38]} e6 {[%clk 01:26:11]} 5. b3 {[%clk
01:31:41]} Bd6 {[%clk 01:26:10]} 6. Bb2 {[%clk 01:31:55]} Nbd7 {[%clk
01:26:10]} {[%emt 00:00:03]} 7. Qc2 {[%clk 01:30:49]} O-O {[%clk 01:25:23]} 8.
Be2 {[%clk 01:30:05]} Qe7 {[%clk 01:19:41]} 9. O-O {[%clk 01:23:30]} b6 {[%clk
01:14:34]} 10. Rfe1 {[%clk 01:15:39]} {[%emt 00:00:05]} Bb7 {[%clk 01:00:07]}
11. d3 {[%clk 01:03:52]} c5 {[%clk 00:50:30]} 12. cxd5 {[%clk 00:55:19]} exd5
{[%clk 00:50:19]} 13. Bf1 {[%clk 00:44:54]} Rac8 {[%clk 00:43:01]} 14. Rad1
{[%clk 00:38:20]} {[%emt 00:00:03]} Ne5 {[%clk 00:42:07]} 15. Nxe5 {[%clk
00:33:52]} Qxe5 {[%clk 00:42:26]} 16. g3 {[%clk 00:31:56]} Qe7 {[%clk
00:37:58]} 17. Qe2 {[%clk 00:28:49]} Rfe8 {[%clk 00:33:21]} 18. Bg2 {[%clk
00:25:14]} {[%emt 00:00:03]} Bc6 {[%clk 00:32:39]} 19. e4 {[%clk 00:22:24]} d4
{[%clk 00:30:55]} 20. Nb1 {[%clk 00:21:58]} Nd7 {[%clk 00:31:19]} 21. f4 {[%clk
00:21:36]} f6 {[%clk 00:31:46]} 22. Nd2 {[%clk 00:20:45]} b5 {[%clk 00:31:08]}
{[%emt 00:02:48]} 23. Rc1 {[%clk 00:17:12]} Nb6 {[%clk 00:23:00]} 24. Qf2
{[%clk 00:14:56]} Qb7 {[%clk 00:22:02]} 25. Ba3 {[%clk 00:14:01]} Nd7 {[%clk
00:22:21]} 26. b4 {[%clk 00:10:56]} cxb4 {[%clk 00:19:12]} 27. Bb2 {[%clk
00:10:57]} Nc5 {[%clk 00:18:24]} 28. Qxd4 {[%clk 00:08:47]} Qe7 {[%clk
00:16:27]} 29. e5 {[%clk 00:06:51]} Bxg2 {[%clk 00:16:09]} 30. Kxg2 {[%clk
00:05:32]} {[%emt 00:01:24]} Qb7+ {[%clk 00:16:34]} {[%emt 00:00:11]} 31. Kg1
{[%clk 00:04:07]} {[%emt 00:01:39]} fxe5 {[%clk 00:16:37]} {[%emt 00:00:28]} 32.
Qxd6 {[%clk 00:03:35]} {[%emt 00:01:13]} Red8 {[%clk 00:16:49]} {[%emt
00:00:08]} 33. Qxe5 {[%clk 00:03:34]} {[%emt 00:00:55]} Nxd3 {[%clk 00:17:11]}
{[%emt 00:00:16]} 34. Qe6+ {[%clk 00:03:04]} {[%emt 00:00:27]} Kh8 {[%clk
00:16:49]} {[%emt 00:00:54]} 35. Rxc8 {[%clk 00:02:45]} {[%emt 00:01:24]} Qxc8
{[%clk 00:17:16]} 36. Qxc8 {[%clk 00:01:49]} {[%emt 00:01:05]} Rxc8 {[%clk
00:17:43]} 37. Bxg7+ {[%clk 00:00:43]} {[%emt 00:01:34]} Kxg7 {[%clk 00:18:09]}
{[%emt 00:00:04]} 38. Re7+ {[%clk 00:01:08]} Kg6 {[%clk 00:18:36]} {[%emt
00:00:09]} 39. Rxa7 {[%clk 00:00:45]} {[%emt 00:00:44]} Rc1+ {[%clk 00:18:05]}
{[%emt 00:01:03]} 40. Nf1 {[%clk 00:01:11]} {[%emt 00:00:04]} Ra1 {[%clk
00:18:30]} {[%emt 00:00:04]} 41. Kg2 {[%clk 00:00:52]} {[%emt 00:00:50]} b3
{[%clk 00:18:46]} {[%emt 00:00:11]} 42. Ra6+ {[%clk 00:01:02]} {[%emt
00:00:20]} Kf7 {[%clk 00:18:42]} {[%emt 00:00:34]} 43. Nd2 {[%clk 00:00:39]}
{[%emt 00:01:20]} Rxa2 {[%clk 00:18:23]} {[%emt 00:00:25]} 44. Rxa2 {[%clk
00:00:55]} {[%emt 00:00:12]} bxa2 {[%clk 00:18:50]} {[%emt 00:00:32]} 45. Nb3
{[%clk 00:01:20]} {[%emt 00:00:04]} Nc1 {[%clk 00:19:07]} 0-1